[Event "80th GEO-ch 2021"]
[Site "Tbilisi"]
[Date "2021.04.26"]
[Round "6.5"]
[White "Shanava, Konstantine"]
[Black "Quparadze, Giga"]
[Result "0-1"]
[ECO "B46"]
[WhiteElo "2504"]
[BlackElo "2463"]
[Annotator "ChessBase"]
[PlyCount "108"]
[EventDate "2021.04.20"]
[EventType "tourn"]
[EventCountry "GEO"]
[SourceTitle "playchess.com"]
[Source "ChessBase"]
[SourceQuality "1"]
[TimeControl "5400+30"]

1. e4 {[%emt 0:00:00]} c5 {[%emt 0:00:00]} 2. Nf3 {[%emt 0:00:00]} e6 {[%emt 0:00:00]} 3. d4 {[%emt 0:00:00]} cxd4 {[%emt 0:00:00]} 4. Nxd4 {[%emt 0:00:00]} a6 {[%emt 0:00:00]} 5. Nc3 {[%emt 0:00:35]} Nc6 {[%emt 0:00:00]} 6. g3 {[%emt 0:09:30]} d6 {[%emt 0:00:26]} 7. Nxc6 {[%emt 0:01:31]} bxc6 {[%emt 0:00:07]} 8. Bg2 {[%emt 0:00:04]} e5 {[%emt 0:01:57]} 9. O-O {[%emt 0:03:47]} Be7 {[%emt 0:01:40]} 10. Na4 {[%emt 0:00:49]} Nf6 {[%emt 0:01:35]} 11. c4 {[%emt 0:00:58]} Be6 {[%emt 0:00:06]} 12. b3 {[%emt 0:00:13]} O-O {[%emt 0:02:56]} 13. f4 {[%emt 0:05:54]} exf4 {[%emt 0:10:35]} 14. gxf4 {[%emt 0:05:52]} Bg4 {[%emt 0:00:52]} 15. Qd3 {[%emt 0:10:12]} d5 {[%emt 0:01:56]} 16. e5 {[%emt 0:01:47]} Ne4 {[%emt 0:00:05]} 17. f5 {[%emt 0:00:19]} Bg5 {[%emt 0:02:01]} 18. h3 {[%emt 0:05:34]} Bh5 {[%emt 0:00:15]} 19. Bxe4 {[%emt 0:00:25]} dxe4 {[%emt 0:00:06]} 20. Qxe4 {[%emt 0:00:06]} Bxc1 {[%emt 0:03:54]} 21. Raxc1 {[%emt 0:00:37]} Qg5+ {[%emt 0:00:06]} 22. Kh1 {[%emt 0:03:01]} Rad8 {[%emt 0:00:05]} 23. Rc2 {[%emt 0:05:38]} Qg3 {[%emt 0:11:08]} 24. Rc3 {[%emt 0:02:50]} Qg5 {[%emt 0:00:05]} 25. Rg1 {[%emt 0:04:30]} Rd1 {[%emt 0:00:05]} 26. Rxd1 {[%emt 0:05:03]} Bxd1 {[%emt 0:00:05]} 27. h4 {[%emt 0:08:42]} Qd2 {[%emt 0:00:52]} 28. Qe3 {[%emt 0:02:28]} Qxa2 {[%emt 0:01:30]} 29. Nc5 {[%emt 0:02:18]} Bc2 {[%emt 0:01:26]} 30. Qd2 {[%emt 0:16:16]} Qa1+ {[%emt 0:00:26]} 31. Kh2 {[%emt 0:00:05]} Bxf5 {[%emt 0:00:07]} 32. Re3 {[%emt 0:02:17]} Qf1 {[%emt 0:01:04]} 33. Rg3 {[%emt 0:01:53]} h6 {[%emt 0:00:10]} 34. Rg2 {[%emt 0:01:34]} Qf3 {[%emt 0:03:49]} 35. Qf2 {[%emt 0:00:39]} Qh3+ {[%emt 0:00:34]} 36. Kg1 {[%emt 0:00:06]} Rd8 {[%emt 0:00:06]} 37. Qg3 {[%emt 0:01:26]} Rd1+ {[%emt 0:00:06]} 38. Kf2 {[%emt 0:00:03]} Rd2+ {[%emt 0:00:06]} 39. Kg1 {[%emt 0:00:04]} Rxg2+ {[%emt 0:00:24]} 40. Qxg2 {[%emt 0:00:03]} Qxh4 {[%emt 0:01:54]} 41. Qxc6 {[%emt 0:01:20]} Qe1+ {[%emt 0:00:17]} 42. Kg2 {[%emt 0:00:21]} Qxe5 {[%emt 0:00:04]} 43. Qd5 {[%emt 0:00:39]} Qe2+ {[%emt 0:00:08]} 44. Kg3 {[%emt 0:00:45]} Qe3+ {[%emt 0:00:07]} 45. Kg2 {[%emt 0:00:17]} g6 {[%emt 0:01:21]} 46. b4 {[%emt 0:00:26]} h5 {[%emt 0:00:06]} 47. Qa8+ {[%emt 0:01:27]} Kg7 {[%emt 0:00:11]} 48. Qf3 {[%emt 0:00:07]} Qd2+ {[%emt 0:01:54]} 49. Qf2 {[%emt 0:00:20]} Qxb4 {[%emt 0:00:26]} 50. Qd4+ {[%emt 0:00:05]} Kh7 {[%emt 0:00:04]} 51. Kf2 {[%emt 0:01:24]} Qb6 {[%emt 0:00:42]} 52. Qe5 {[%emt 0:00:16]} a5 {[%emt 0:00:32]} 53. Kg3 {[%emt 0:00:58]} Qd8 {[%emt 0:00:47]} 54. Nb7 {[%emt 0:00:31]} Qd5 {[%emt 0:57:42]} 0-1

[Event "80th GEO-ch 2021"]
[Site "Tbilisi"]
[Date "2021.04.27"]
[Round "7.2"]
[White "Petriashvili, Nikoloz"]
[Black "Shanava, Konstantine"]
[Result "1-0"]
[ECO "B33"]
[WhiteElo "2425"]
[BlackElo "2504"]
[Annotator "ChessBase"]
[PlyCount "99"]
[EventDate "2021.04.20"]
[EventType "tourn"]
[EventCountry "GEO"]
[SourceTitle "playchess.com"]
[Source "ChessBase"]
[SourceQuality "1"]
[TimeControl "5400+30"]

1. e4 {[%emt 1:30:30]} c5 {[%emt 0:04:17]} 2. Nf3 {[%emt 0:00:00]} Nc6 {[%emt 0:00:13]} 3. d4 {[%emt 0:00:00]} cxd4 {[%emt 0:00:10]} 4. Nxd4 {[%emt 0:00:00]} Qb6 {[%emt 0:04:14]} 5. Nb3 {[%emt 0:00:00]} Nf6 {[%emt 0:00:12]} 6. Nc3 {[%emt 0:00:00]} e6 {[%emt 0:00:38]} 7. Be3 {[%emt 0:00:00]} Qc7 {[%emt 0:01:57]} 8. a3 {[%emt 0:00:00]} a6 {[%emt 0:00:36]} 9. f4 {[%emt 0:00:00]} d6 {[%emt 0:00:41]} 10. g4 {[%emt 0:00:00]} b5 {[%emt 0:05:25]} 11. Bg2 {[%emt 0:00:00]} Bb7 {[%emt 0:00:18]} 12. Qe2 {[%emt 0:00:00]} Be7 {[%emt 0:05:57]} 13. g5 {[%emt 0:00:00]} Nd7 {[%emt 0:00:12]} 14. h4 {[%emt 0:00:00]} Nb6 {[%emt 0:03:41]} 15. O-O-O {[%emt 0:00:00]} Nc4 {[%emt 0:08:03]} 16. Bf2 {[%emt 0:00:00]} N6a5 {[%emt 0:08:30]} 17. Rh3 {[%emt 0:00:00]} Rc8 {[%emt 0:06:52]} 18. Kb1 {[%emt 0:00:00]} d5 {[%emt 0:19:00]} 19. exd5 {[%emt 0:00:00]} O-O {[%emt 0:02:20]} 20. f5 {[%emt 0:00:00]} exf5 {[%emt 0:03:52]} 21. Nxa5 {[%emt 0:00:00]} Nxa5 {[%emt 0:01:51]} 22. Qd3 {[%emt 0:00:00]} Qd7 {[%emt 0:05:42]} 23. Rf3 {[%emt 0:00:00]} g6 {[%emt 0:11:19]} 24. d6 {[%emt 0:00:00]} Bd8 {[%emt 0:00:29]} 25. Rg3 {[%emt 0:00:00]} Bxg2 {[%emt 0:00:56]} 26. Rxg2 {[%emt 0:00:00]} Nc4 {[%emt 0:00:40]} 27. Bg3 {[%emt 0:00:00]} Nb6 {[%emt 0:00:41]} 28. Re2 {[%emt 0:00:00]} Rc4 {[%emt 0:00:23]} 29. Nd5 {[%emt 0:00:00]} Nxd5 {[%emt 0:00:44]} 30. Qxd5 {[%emt 0:00:00]} h6 {[%emt 0:01:18]} 31. h5 {[%emt 0:00:00]} Bxg5 {[%emt 0:01:40]} 32. hxg6 {[%emt 0:00:00]} f4 {[%emt 0:00:31]} 33. b3 {[%emt 0:00:00]} Rcc8 {[%emt 0:01:58]} 34. Bf2 {[%emt 0:00:00]} Kg7 {[%emt 0:00:09]} 35. gxf7 {[%emt 0:00:00]} Qxf7 {[%emt 0:00:44]} 36. Re6 {[%emt 0:00:00]} Qf5 {[%emt 0:00:56]} 37. Bd4+ {[%emt 0:00:00]} Kh7 {[%emt 0:00:15]} 38. Qb7+ {[%emt 0:00:00]} Qf7 {[%emt 0:00:23]} 39. d7 {[%emt 0:00:00]} Rcd8 {[%emt 0:00:55]} 40. Qe4+ {[%emt 0:00:00]} Qf5 {[%emt 0:00:03]} 41. Qxf5+ {[%emt 0:00:00]} Rxf5 {[%emt 0:00:01]} 42. Bb6 {[%emt 0:00:00]} Rdf8 {[%emt 0:01:37]} 43. d8=Q {[%emt 0:00:00]} Bxd8 {[%emt 0:00:05]} 44. Bxd8 {[%emt 0:00:00]} f3 {[%emt 0:00:07]} 45. Bb6 {[%emt 0:00:12]} R8f6 {[%emt 0:00:27]} 46. Re7+ {[%emt 0:01:25]} Kg6 {[%emt 0:00:14]} 47. Bf2 {[%emt 0:00:51]} Rg5 {[%emt 0:00:19]} 48. Rf1 {[%emt 0:02:22]} Rg2 {[%emt 0:00:22]} 49. Bd4 {[%emt 0:01:38]} Rf4 {[%emt 0:01:27]} 50. Be5 {[%emt 0:01:38]} 1-0

[Event "80th GEO-ch 2021"]
[Site "Tbilisi"]
[Date "2021.04.27"]
[Round "7.3"]
[White "Arabidze, Meri"]
[Black "Lortkipanidze, Nodar"]
[Result "0-1"]
[ECO "A88"]
[WhiteElo "2437"]
[BlackElo "2416"]
[Annotator "ChessBase"]
[PlyCount "106"]
[EventDate "2021.04.20"]
[EventType "tourn"]
[EventCountry "GEO"]
[SourceTitle "playchess.com"]
[Source "ChessBase"]
[SourceQuality "1"]
[TimeControl "5400+30"]

1. d4 {[%emt 0:01:56]} d6 {[%emt 0:00:00]} 2. Nf3 {[%emt 0:00:42]} g6 {[%emt 0:00:00]} 3. g3 {[%emt 0:00:28]} Bg7 {[%emt 0:00:11]} 4. Bg2 {[%emt 0:00:05]} f5 {[%emt 0:00:54]} 5. O-O {[%emt 0:00:23]} Nf6 {[%emt 0:00:05]} 6. c4 {[%emt 0:00:20]} O-O {[%emt 0:00:17]} 7. Nc3 {[%emt 0:00:09]} c6 {[%emt 0:00:07]} 8. b3 {[%emt 0:00:21]} Na6 {[%emt 0:00:12]} 9. Bb2 {[%emt 0:00:39]} Nc7 {[%emt 0:00:34]} 10. Rc1 {[%emt 0:02:44]} Bd7 {[%emt 0:06:14]} 11. d5 {[%emt 0:09:35]} c5 {[%emt 0:03:44]} 12. Ba1 {[%emt 0:08:21]} b5 {[%emt 0:05:13]} 13. cxb5 {[%emt 0:02:28]} Nxb5 {[%emt 0:00:09]} 14. Nxb5 {[%emt 0:09:09]} Bxb5 {[%emt 0:01:52]} 15. Ng5 {[%emt 0:00:08]} Bd7 {[%emt 0:02:20]} 16. Rc4 {[%emt 0:02:09]} Rb8 {[%emt 0:04:58]} 17. Qd2 {[%emt 0:02:58]} h6 {[%emt 0:05:55]} 18. Ne6 {[%emt 0:03:20]} Bxe6 {[%emt 0:00:05]} 19. dxe6 {[%emt 0:00:03]} Qc8 {[%emt 0:02:23]} 20. Ra4 {[%emt 0:04:23]} Qxe6 {[%emt 0:04:01]} 21. Bxf6 {[%emt 0:08:15]} Qxf6 {[%emt 0:00:06]} 22. Qd5+ {[%emt 0:01:50]} Kh7 {[%emt 0:02:06]} 23. Rxa7 {[%emt 0:00:10]} Rb4 {[%emt 0:00:29]} 24. a3 {[%emt 0:06:32]} Rd4 {[%emt 0:01:04]} 25. Qb7 {[%emt 0:00:29]} e6 {[%emt 0:00:26]} 26. Qc7 {[%emt 0:02:33]} Rd2 {[%emt 0:02:25]} 27. e3 {[%emt 0:06:46]} e5 {[%emt 0:02:43]} 28. b4 {[%emt 0:04:56]} cxb4 {[%emt 0:06:04]} 29. axb4 {[%emt 0:00:04]} e4 {[%emt 0:02:23]} 30. b5 {[%emt 0:05:33]} d5 {[%emt 0:00:59]} 31. Rc1 {[%emt 0:02:58]} Rg8 {[%emt 0:05:26]} 32. Rc6 {[%emt 0:09:18]} Qg5 {[%emt 0:00:12]} 33. Bf1 {[%emt 0:04:54]} Qh5 {[%emt 0:01:35]} 34. Rc2 {[%emt 0:00:20]} Rd1 {[%emt 0:01:22]} 35. Rc1 {[%emt 0:00:06]} Rd2 {[%emt 0:00:24]} 36. Qc3 {[%emt 0:01:38]} Ra2 {[%emt 0:00:37]} 37. Qc5 {[%emt 0:00:51]} Rd2 {[%emt 0:01:29]} 38. Rc2 {[%emt 0:00:46]} Rd1 {[%emt 0:00:07]} 39. Rc1 {[%emt 0:00:02]} Rd2 {[%emt 0:00:12]} 40. Qb4 {[%emt 0:01:05]} Rxf2 {[%emt 0:00:14]} 41. Rxg7+ {[%emt 0:00:17]} Rxg7 {[%emt 0:00:05]} 42. Kxf2 {[%emt 0:00:04]} Qf3+ {[%emt 0:00:09]} 43. Ke1 {[%emt 0:00:03]} Qxe3+ {[%emt 0:00:05]} 44. Kd1 {[%emt 0:00:03]} d4 {[%emt 0:00:11]} 45. Qd2 {[%emt 0:01:55]} Qb3+ {[%emt 0:01:04]} 46. Qc2 {[%emt 0:00:01]} Qa3 {[%emt 0:00:09]} 47. Rb1 {[%emt 0:01:05]} d3 {[%emt 0:01:44]} 48. Qc4 {[%emt 0:00:14]} Rd7 {[%emt 0:00:18]} 49. Qe6 {[%emt 0:00:49]} Qa4+ {[%emt 0:00:08]} 50. Qb3 {[%emt 0:00:16]} Qd4 {[%emt 0:00:05]} 51. Qb2 {[%emt 0:00:32]} Qb6 {[%emt 0:00:31]} 52. Qc3 {[%emt 0:00:42]} Qf2 {[%emt 0:00:16]} 53. Kc1 {[%emt 0:00:30]} d2+ {[%emt 0:00:08]} 0-1

[Event "80th GEO-ch 2021"]
[Site "Tbilisi"]
[Date "2021.04.27"]
[Round "7.4"]
[White "Kacharava, Nikolozi"]
[Black "Pantsulaia, Levan"]
[Result "0-1"]
[ECO "B12"]
[WhiteElo "2443"]
[BlackElo "2553"]
[Annotator "ChessBase"]
[PlyCount "200"]
[EventDate "2021.04.20"]
[EventType "tourn"]
[EventCountry "GEO"]
[SourceTitle "playchess.com"]
[Source "ChessBase"]
[SourceQuality "1"]
[TimeControl "5400+30"]

1. e4 {[%emt 0:00:00]} c6 {[%emt 0:00:10]} 2. d4 {[%emt 0:00:00]} d5 {[%emt 0:00:08]} 3. e5 {[%emt 0:00:00]} Bf5 {[%emt 0:00:40]} 4. Nd2 {[%emt 0:00:00]} e6 {[%emt 0:00:34]} 5. Nb3 {[%emt 0:00:00]} Nd7 {[%emt 0:01:06]} 6. Nf3 {[%emt 0:00:12]} Bg6 {[%emt 0:02:40]} 7. Be2 {[%emt 0:01:45]} Nh6 {[%emt 0:00:16]} 8. Bxh6 {[%emt 0:02:09]} gxh6 {[%emt 0:04:22]} 9. O-O {[%emt 0:01:00]} Bg7 {[%emt 0:04:29]} 10. Bd3 {[%emt 0:06:19]} O-O {[%emt 0:04:32]} 11. Qd2 {[%emt 0:02:01]} Rc8 {[%emt 0:05:04]} 12. Nc1 {[%emt 0:04:28]} c5 {[%emt 0:04:57]} 13. c3 {[%emt 0:01:29]} Qb6 {[%emt 0:01:30]} 14. Bb1 {[%emt 0:15:57]} cxd4 {[%emt 0:05:05]} 15. cxd4 {[%emt 0:01:07]} Rc4 {[%emt 0:00:16]} 16. b3 {[%emt 0:05:38]} Rc6 {[%emt 0:00:07]} 17. Ne2 {[%emt 0:03:09]} Rfc8 {[%emt 0:01:05]} 18. Bd3 {[%emt 0:02:27]} Bf8 {[%emt 0:05:45]} 19. Rad1 {[%emt 0:12:03]} Qb4 {[%emt 0:08:53]} 20. Qe3 {[%emt 0:10:30]} Qa3 {[%emt 0:00:54]} 21. Nh4 {[%emt 0:01:35]} Kh8 {[%emt 0:10:27]} 22. Bb5 {[%emt 0:05:10]} R6c7 {[%emt 0:00:42]} 23. f4 {[%emt 0:00:53]} Qe7 {[%emt 0:04:40]} 24. g3 {[%emt 0:06:25]} Bc2 {[%emt 0:01:42]} 25. Rc1 {[%emt 0:02:24]} f5 {[%emt 0:01:27]} 26. exf6 {[%emt 0:01:58]} Nxf6 {[%emt 0:00:18]} 27. f5 {[%emt 0:03:11]} Ng4 {[%emt 0:08:08]} 28. Qxe6 {[%emt 0:05:02]} a6 {[%emt 0:09:05]} 29. Nf4 {[%emt 0:04:57]} Qb4 {[%emt 0:00:14]} 30. Nhg6+ {[%emt 0:01:18]} hxg6 {[%emt 0:00:18]} 31. Nxg6+ {[%emt 0:00:02]} Kh7 {[%emt 0:00:27]} 32. Nxf8+ {[%emt 0:00:57]} Qxf8 {[%emt 0:00:56]} 33. Bd7 {[%emt 0:01:02]} Rd8 {[%emt 0:01:20]} 34. Qg6+ {[%emt 0:00:38]} Kh8 {[%emt 0:00:06]} 35. Qxg4 {[%emt 0:00:26]} Rdxd7 {[%emt 0:00:11]} 36. Qf4 {[%emt 0:00:58]} Rc6 {[%emt 0:05:50]} 37. Rf2 {[%emt 0:00:39]} Be4 {[%emt 0:00:26]} 38. Rxc6 {[%emt 0:00:26]} bxc6 {[%emt 0:00:05]} 39. Qe5+ {[%emt 0:00:15]} Kh7 {[%emt 0:00:31]} 40. f6 {[%emt 0:00:27]} Qf7 {[%emt 0:03:52]} 41. h4 {[%emt 0:00:27]} Rd8 {[%emt 0:01:28]} 42. Qe7 {[%emt 0:01:36]} Qxe7 {[%emt 0:01:07]} 43. fxe7 {[%emt 0:00:00]} Re8 {[%emt 0:00:09]} 44. Rf6 {[%emt 0:00:00]} Rxe7 {[%emt 0:00:22]} 45. Rxc6 {[%emt 0:00:00]} Bd3 {[%emt 0:01:09]} 46. Rd6 {[%emt 0:00:24]} Re2 {[%emt 0:00:06]} 47. Rxd5 {[%emt 0:00:39]} Rxa2 {[%emt 0:00:08]} 48. g4 {[%emt 0:00:40]} Bb5 {[%emt 0:00:24]} 49. Re5 {[%emt 0:00:49]} Rd2 {[%emt 0:01:25]} 50. Re7+ {[%emt 0:00:17]} Kg6 {[%emt 0:00:56]} 51. Re6+ {[%emt 0:00:07]} Kg7 {[%emt 0:00:06]} 52. g5 {[%emt 0:01:20]} hxg5 {[%emt 0:02:16]} 53. hxg5 {[%emt 0:00:01]} Rb2 {[%emt 0:00:40]} 54. Re3 {[%emt 0:00:21]} Kg6 {[%emt 0:00:05]} 55. Rg3 {[%emt 0:00:39]} Rd2 {[%emt 0:00:58]} 56. d5 {[%emt 0:00:17]} Bd3 {[%emt 0:01:08]} 57. Rg2 {[%emt 0:00:50]} Rd1+ {[%emt 0:00:17]} 58. Kf2 {[%emt 0:00:00]} Be4 {[%emt 0:00:56]} 59. Rg1 {[%emt 0:00:47]} Rxd5 {[%emt 0:00:06]} 60. Ke3 {[%emt 0:00:59]} Bf5 {[%emt 0:00:46]} 61. b4 {[%emt 0:00:48]} Rd3+ {[%emt 0:00:18]} 62. Ke2 {[%emt 0:00:00]} Rb3 {[%emt 0:01:31]} 63. Kd2 {[%emt 0:01:00]} Rxb4 {[%emt 0:00:18]} 64. Kc3 {[%emt 0:00:07]} Rb6 {[%emt 0:00:18]} 65. Rg2 {[%emt 0:00:26]} Be6 {[%emt 0:00:40]} 66. Rb2 {[%emt 0:00:51]} Rc6+ {[%emt 0:00:29]} 67. Kb4 {[%emt 0:00:06]} Kxg5 {[%emt 0:00:20]} 68. Ka5 {[%emt 0:00:19]} Bc8 {[%emt 0:00:05]} 69. Rf2 {[%emt 0:00:32]} Rc5+ {[%emt 0:00:15]} 70. Kb4 {[%emt 0:00:23]} Rb5+ {[%emt 0:00:06]} 71. Ka3 {[%emt 0:00:11]} Rd5 {[%emt 0:01:14]} 72. Rf1 {[%emt 0:00:15]} Bf5 {[%emt 0:00:08]} 73. Kb4 {[%emt 0:00:12]} Rb5+ {[%emt 0:00:28]} 74. Ka4 {[%emt 0:00:18]} Kf6 {[%emt 0:00:17]} 75. Rc1 {[%emt 0:00:19]} Be4 {[%emt 0:00:16]} 76. Ka3 {[%emt 0:00:28]} Ke5 {[%emt 0:00:08]} 77. Rd1 {[%emt 0:00:21]} Bd5 {[%emt 0:00:13]} 78. Re1+ {[%emt 0:00:24]} Kd4 {[%emt 0:00:13]} 79. Rd1+ {[%emt 0:00:40]} Kc5 {[%emt 0:00:14]} 80. Rd3 {[%emt 0:00:23]} Bc4 {[%emt 0:00:28]} 81. Rh3 {[%emt 0:00:17]} Ra5+ {[%emt 0:00:11]} 82. Kb2 {[%emt 0:00:04]} Kb4 {[%emt 0:00:09]} 83. Rh8 {[%emt 0:00:46]} Rg5 {[%emt 0:00:25]} 84. Rb8+ {[%emt 0:00:39]} Bb5 {[%emt 0:00:29]} 85. Rh8 {[%emt 0:00:13]} Rg2+ {[%emt 0:00:07]} 86. Ka1 {[%emt 0:00:21]} a5 {[%emt 0:00:13]} 87. Rh1 {[%emt 0:00:22]} Bc4 {[%emt 0:00:21]} 88. Rb1+ {[%emt 0:01:52]} Ka3 {[%emt 0:00:16]} 89. Rb2 {[%emt 0:00:10]} Rg1+ {[%emt 0:02:18]} 90. Rb1 {[%emt 0:00:01]} Rg3 {[%emt 0:00:14]} 91. Rb2 {[%emt 0:00:39]} a4 {[%emt 0:00:32]} 92. Rb1 {[%emt 0:01:56]} Bb3 {[%emt 0:00:20]} 93. Rb2 {[%emt 0:00:29]} Rg1+ {[%emt 0:01:23]} 94. Rb1 {[%emt 0:00:01]} Rg2 {[%emt 0:00:08]} 95. Rb2 {[%emt 0:01:02]} Bc2 {[%emt 0:00:11]} 96. Ra2+ {[%emt 0:00:08]} Kb4 {[%emt 0:00:16]} 97. Rb2+ {[%emt 0:00:16]} Kc3 {[%emt 0:00:07]} 98. Ka2 {[%emt 0:00:23]} Rg1 {[%emt 0:01:09]} 99. Ka3 {[%emt 0:00:21]} Rh1 {[%emt 0:00:13]} 100. Ra2 {[%emt 0:00:37]} Bb3 {[%emt 0:00:10]} 0-1

[Event "80th GEO-ch 2021"]
[Site "Tbilisi"]
[Date "2021.04.29"]
[Round "9.2"]
[White "Arabidze, Meri"]
[Black "Quparadze, Giga"]
[Result "1/2-1/2"]
[ECO "E11"]
[WhiteElo "2437"]
[BlackElo "2463"]
[Annotator "RC"]
[PlyCount "60"]
[EventDate "2021.04.20"]
[EventType "tourn"]
[EventCountry "GEO"]
[SourceTitle "playchess.com"]
[Source "ChessBase"]
[SourceQuality "1"]
[TimeControl "5400+30"]

1. d4 {[%emt 0:00:00]} Nf6 {[%emt 0:00:00]} 2. c4 {[%emt 0:00:00]} e6 {[%emt 0:00:00]} 3. g3 {[%emt 0:00:00]} d5 {[%emt 0:00:00]} 4. Bg2 {[%emt 0:00:00]} Bb4+ {[%emt 0:00:00]} 5. Bd2 {[%emt 0:00:00]} Be7 {[%emt 0:00:00]} 6. Nf3 {[%emt 0:00:06]} O-O {[%emt 0:00:00]} 7. O-O {[%emt 0:00:07]} c6 {[%emt 0:00:01]} 8. Na3 {[%emt 0:00:10]} Ne4 {[%emt 0:00:38]} 9. Bf4 {[%emt 0:03:38]} Nd7 {[%emt 0:00:40]} 10. Rc1 {[%emt 0:01:21]} f5 {[%emt 0:00:36]} 11. Ne5 {[%emt 0:05:24]} Nxe5 {[%emt 0:00:11]} 12. Bxe5 {[%emt 0:00:41]} Bd7 {[%emt 0:00:21]} 13. Nc2 {[%emt 0:06:59]} Be8 {[%emt 0:00:32]} 14. Ne1 {[%emt 0:00:39]} Nd6 {[%emt 0:01:19]} 15. b3 {[%emt 0:02:43]} Nf7 {[%emt 0:00:26]} 16. Nd3 {[%emt 0:04:50]} Nxe5 {[%emt 0:00:14]} 17. dxe5 {[%emt 0:00:35]} a5 {[%emt 0:02:24]} 18. Qc2 {[%emt 0:01:28]} Bf7 {[%emt 0:00:35]} 19. Rfd1 {[%emt 0:07:35]} Ba3 {[%emt 0:00:09]} 20. Rb1 {[%emt 0:01:02]} Qe7 {[%emt 0:00:05]} 21. e3 {[%emt 0:09:34]} Rfd8 {[%emt 0:00:15]} 22. Bf1 {[%emt 0:02:18]} Rd7 {[%emt 0:00:28]} 23. Be2 {[%emt 0:03:51]} Rad8 {[%emt 0:00:31]} 24. Qc3 {[%emt 0:04:42]} Bb4 {[%emt 0:00:04]} 25. Qc1 {[%emt 0:00:45]} Ba3 {[%emt 0:00:05]} 26. Qc3 {[%emt 0:01:10]} Bb4 {[%emt 0:00:11]} 27. Qc1 {[%emt 0:00:58]} Ba3 {[%emt 0:00:05]} 28. Qc3 {[%emt 0:00:26]} Bb4 {[%emt 0:00:04]} 29. Qc1 {[%emt 0:00:07]} Ba3 {[%emt 0:00:04]} 30. Qc3 {[%emt 0:00:03]} Bb4 {[%emt 0:00:04]} 1/2-1/2

[Event "80th GEO-ch 2021"]
[Site "Tbilisi"]
[Date "2021.04.29"]
[Round "9.3"]
[White "Kacharava, Nikolozi"]
[Black "Shanava, Konstantine"]
[Result "1/2-1/2"]
[ECO "B80"]
[WhiteElo "2443"]
[BlackElo "2504"]
[Annotator "ChessBase"]
[PlyCount "88"]
[EventDate "2021.04.20"]
[EventType "tourn"]
[EventCountry "GEO"]
[SourceTitle "playchess.com"]
[Source "ChessBase"]
[SourceQuality "1"]
[TimeControl "5400+30"]

1. e4 {[%emt 0:00:00]} c5 {[%emt 0:01:02]} 2. Nf3 {[%emt 0:00:00]} e6 {[%emt 0:00:12]} 3. d4 {[%emt 0:00:19]} cxd4 {[%emt 0:00:05]} 4. Nxd4 {[%emt 0:00:10]} Nc6 {[%emt 0:00:05]} 5. Nc3 {[%emt 0:00:44]} d6 {[%emt 0:00:05]} 6. Be3 {[%emt 0:04:30]} Nf6 {[%emt 0:05:09]} 7. Qe2 {[%emt 0:07:22]} a6 {[%emt 0:02:04]} 8. O-O-O {[%emt 0:00:39]} Qc7 {[%emt 0:01:58]} 9. f3 {[%emt 0:10:54]} b5 {[%emt 0:02:59]} 10. g4 {[%emt 0:05:02]} Be7 {[%emt 0:14:52]} 11. Bg2 {[%emt 0:06:19]} Nxd4 12. Bxd4 {[%emt 0:00:55]} b4 {[%emt 0:14:28]} 13. Na4 {[%emt 0:04:53]} e5 {[%emt 0:00:37]} 14. Be3 {[%emt 0:07:55]} Be6 {[%emt 0:04:49]} 15. Nb6 {[%emt 0:04:04]} Rb8 {[%emt 0:00:38]} 16. g5 {[%emt 0:04:05]} Nd7 {[%emt 0:13:07]} 17. Nd5 {[%emt 0:00:36]} Bxd5 {[%emt 0:00:06]} 18. Rxd5 {[%emt 0:00:40]} O-O {[%emt 0:01:38]} 19. Kb1 {[%emt 0:04:10]} Nb6 {[%emt 0:02:50]} 20. Bxb6 {[%emt 0:04:25]} Qxb6 {[%emt 0:00:06]} 21. h4 {[%emt 0:00:26]} a5 {[%emt 0:00:04]} 22. Bh3 {[%emt 0:01:22]} Qa7 {[%emt 0:05:38]} 23. Qd2 {[%emt 0:02:04]} a4 {[%emt 0:00:22]} 24. h5 {[%emt 0:02:28]} a3 {[%emt 0:01:09]} 25. b3 {[%emt 0:00:38]} Kh8 {[%emt 0:03:16]} 26. Bf5 {[%emt 0:05:43]} Qc7 {[%emt 0:02:14]} 27. g6 {[%emt 0:01:25]} h6 {[%emt 0:00:10]} 28. Qd3 {[%emt 0:02:52]} Rb6 {[%emt 0:00:41]} 29. gxf7 {[%emt 0:01:44]} Rxf7 {[%emt 0:00:42]} 30. Rd1 {[%emt 0:01:13]} Rc6 {[%emt 0:02:15]} 31. Rb5 {[%emt 0:02:21]} Rc3 {[%emt 0:03:11]} 32. Qe2 {[%emt 0:00:41]} Rf8 {[%emt 0:00:29]} 33. Rbd5 {[%emt 0:06:06]} Rc5 {[%emt 0:04:58]} 34. Rxc5 {[%emt 0:00:45]} Qxc5 {[%emt 0:00:12]} 35. Qc4 {[%emt 0:01:05]} Qe3 {[%emt 0:02:55]} 36. Bg4 {[%emt 0:01:35]} Qb6 {[%emt 0:01:37]} 37. Qe6 {[%emt 0:01:19]} Bf6 {[%emt 0:00:11]} 38. Qc4 {[%emt 0:00:42]} Bg5 {[%emt 0:00:55]} 39. Bf5 {[%emt 0:00:53]} Bf6 {[%emt 0:05:23]} 40. Qd5 {[%emt 0:01:09]} Qc7 {[%emt 0:00:49]} 41. Qc4 {[%emt 0:00:31]} Qb8 {[%emt 0:01:06]} 42. Qd5 {[%emt 0:00:46]} Qc7 {[%emt 0:02:42]} 43. Qc4 {[%emt 0:00:08]} Qb8 {[%emt 0:01:06]} 44. Qd5 {[%emt 0:00:34]} Qc7 {[%emt 0:00:28]} 1/2-1/2